Cogmind - Beta 15 @@@ ROGUE MODE // 2025.08.13 @ 17:45:39 Player: LightKnight Result: Destroyed by as-32472 with Assembled Heavy Rifle Performance ------------- Evolutions (0) 0 Regions Visited (4) 800 Robots Destroyed (36) 180 Value Destroyed (670) 670 Prototype IDs (25) 500 Alien Tech Used (0) 0 Bonus (300) 300 TOTAL SCORE: 2450 Bonus ------- Aligned with FarCom 300 Cogmind --------- Core Integrity 0/250 Matter 286/300 Energy 240/240 System Corruption 0% Temperature Cool (0) Movement Treading (240) Ox1 Location -9/Mines Parts ------- > --- POWER (1) -------- Nuclear Core > --- PROPULSION (2) --- Light Treads > --- UTILITY (2) ------ Heat Sink Large Storage Unit > --- WEAPON (2) ------- Spread Laser Mini Grenade Launcher > --- INVENTORY (15) --- Light Nuclear Core Light Fission Core Aluminum Leg High-capacity Storage Unit High-capacity Battery (250) Heavy EM Pulse Gun Heavy EM Pulse Gun Heavy EM Pulse Gun Spread Laser YOLO Cannon Shock Bomb Launcher Rocket Launcher Great Maul Peak State ------------ > --- POWER ------------ Nuclear Core > --- PROPULSION ------- Light Treads Light Treads > --- UTILITY ---------- Large Storage Unit Seismic Detector > --- WEAPON ----------- Spread Laser Mini Grenade Launcher > --- INVENTORY -------- Light Nuclear Core Light Fission Core Aluminum Leg Wheel Heat Sink High-capacity Storage Unit Heavy EM Pulse Gun Heavy EM Pulse Gun Heavy EM Pulse Gun Spread Laser YOLO Cannon Shock Bomb Launcher Rocket Launcher Great Maul [Rating: 15] Favorites ----------- Power Nuclear Core Engine Ion Engine Power Core Nuclear Core Propulsion Light Treads Treads Light Treads Leg Aluminum Leg Utility Large Storage Unit Device Seismic Detector Storage Large Storage Unit Processor Targeting Computer Weapon Spread Laser Energy Gun Spread Laser Energy Cannon Beam Cannon Ballistic Gun Assault Rifle Ballistic Cannon Light Cannon Launcher Mini Grenade Launcher Build | -11 -10 -10 -10 -9 ------- Run | Yrd Mat Min Exi Min Slots Evolved . | . . . . . Power . | . . . . . Propulsion . | . . . . . Utility . | . . . . . Weapon . | . . . . . Parts Attached 22 | 1 17 4 . . Power 2 | . 1 1 . . Engine . | . . . . . Core 2 | . 1 1 . . Reactor . | . . . . . Propulsion 5 | . 4 1 . . Treads 3 | . 2 1 . . Leg 2 | . 2 . . . Wheel . | . . . . . Hover . | . . . . . Flight . | . . . . . Utility 4 | . 4 . . . Device 2 | . 2 . . . Storage 1 | . 1 . . . Processor 1 | . 1 . . . Hackware . | . . . . . Protection . | . . . . . Artifact . | . . . . . Weapon 11 | 1 8 2 . . Energy Gun 6 | 1 4 1 . . Energy Cannon 1 | . 1 . . . Ballistic Gun 1 | . 1 . . . Ballistic Cannon 1 | . 1 . . . Launcher 2 | . 1 1 . . Special Weapon . | . . . . . Impact Weapon . | . . . . . Slashing Weapon . | . . . . . Piercing Weapon . | . . . . . Special Melee Weapon . | . . . . . Unidentified Prototypes . | . . . . . Parts Lost 4 | . 3 . . 1 Power 1 | . 1 . . . Propulsion 2 | . 1 . . 1 Utility . | . . . . . Weapon 1 | . 1 . . . Highest Loss Streak 1 | . 1 . . 1 To Critical Strikes . | . . . . . Average Backups 13 | 6 12 14 14 13 Power 1 | 1 1 1 1 2 Propulsion 2 | 4 3 2 1 1 Utility 1 | . 1 2 2 2 Weapon 6 | 1 4 9 8 8 Tool/Special . | . . . . . Unused Backups 24 | . 9 2 1 12 Power 3 | . 1 1 . 1 Propulsion 3 | . 1 . 1 1 Utility 3 | . 1 . . 2 Weapon 15 | . 6 1 . 8 Tool/Special . | . . . . . Average Slot Usage (%) 98 | . 96 100 100 99 Engine 5 | . 11 . . . Core 8 | . 2 14 14 14 Treads 14 | . 9 14 28 27 Leg 13 | . 18 13 . . Device 11 | . 8 14 14 14 Storage 14 | . 14 14 14 14 Processor 1 | . 3 . . . Energy Gun 17 | . 14 25 14 14 Energy Cannon 3 | . 8 . . . Ballistic Gun 1 | . 2 . . . Ballistic Cannon 1 | . 2 . . . Launcher 3 | . . 2 14 14 Peak Build Rating 15 | 6 13 13 15 15 Average Rating 11 | 6 8 12 14 14 On Entrance 10 | 6 6 13 13 15 Naked Turns . | . . . . . Heaviest Build 34 | 14 32 34 32 32 Greatest Support 40 | 20 40 40 40 40 Greatest Overweight (x) 3 | . 3 1 . 1 Average Overweight (x) . | . . . . . Largest Inventory Capacity 15 | 8 15 15 15 15 Average Capacity 14 | 8 14 15 15 15 Most Carried 15 | 6 15 15 15 15 Average Carried 13 | 6 12 14 14 14 Final Capacity 15 | 8 15 15 15 15 Final Carried 15 | 6 15 14 15 14 Class Distribution -------------------- 100% | Mutant Dominant Class ---------------- Mutant | -10/Materials Mutant | -10/Mines Mutant | -10/Exiles Mutant | -9/Mines Resources | -11 -10 -10 -10 -9 ----------- Run | Yrd Mat Min Exi Min Matter Collected 673 | 200 342 131 . . Remotely . | . . . . . Salvage Created 659 | . 557 102 . . Parts 47 | . 27 20 . . Haulers Intercepted 2 | . 2 . . . Recyclers Shooed 1 | . 1 . . . Parts Field Recycled . | . . . . . Retrieved Matter . | . . . . . Parts Self-Destructed . | . . . . . Prevented . | . . . . . Kills | -11 -10 -10 -10 -9 ------- Run | Yrd Mat Min Exi Min Combat Hostiles Destroyed 29 | . 14 15 . . Guns 16 | . 6 10 . . Cannons 4 | . 4 . . . AOE 9 | . 4 5 . . Classes Destroyed 7 | . 7 . . . Worker 1 | . 1 . . . Builder 2 | . 2 . . . Hauler 2 | . 2 . . . Operator 1 | . 1 . . . Watcher 1 | . 1 . . . Swarmer 18 | . 3 15 . . Grunt 11 | . 11 . . . Best Kill Streak 10 | . 10 6 . . Combat Bots Only 6 | . 6 6 . . Max Kills in Single Turn 2 | . 2 2 . . Gunslinging . | . . . . . Exploded 2 | . 1 2 . . Melee . | . . . . . Uniques/NPCs Destroyed . | . . . . . Combat | -11 -10 -10 -10 -9 -------- Run | Yrd Mat Min Exi Min Hostile Shots Fired 139 | . 79 48 . 12 Missed 33 | . 18 9 . 6 Hits 106 | . 61 39 . 6 Projectile 106 | . 61 39 . 6 AOE 4 | . . . . 4 Critical Strikes 1 | . 1 . . . Damage Taken 1263 | . 678 355 . 230 Core 262 | . 114 38 . 110 Absorbed by Shields . | . . . . . Core Remaining (%) 100 | 100 . . . . Volleys Fired 99 | . 75 24 . . Largest 2 | . 2 2 . . Hottest 130 | . 110 130 . . Shots Fired 172 | . 139 33 . . Gun 104 | . 74 30 . . Cannon 54 | . 54 . . . Launcher 14 | . 11 3 . . Special . | . . . . . Kinetic 33 | . 33 . . . Thermal 108 | . 78 30 . . Explosive 14 | . 11 3 . . Electromagnetic 17 | . 17 . . . Robot Hit Streak 10 | . 10 5 . . Robot Miss Streak 10 | . 6 10 . . Penetration Max . | . . . . . Secondary Targets 2 | . . 2 . . Max Gunslinging Chain 1 | . . 1 . . Shots Hit Robots 109 | . 82 27 . . Core Hits 71 | . 40 31 . . Critical Kills . | . . . . . Critical Parts Destroyed . | . . . . . Critical Strikes 2 | . 2 . . . Burn 2 | . 2 . . . Melee Attacks . | . . . . . Impact . | . . . . . Slashing . | . . . . . Piercing . | . . . . . Sneak Attacks . | . . . . . Combat Hostiles . | . . . . . Follow-up Attacks . | . . . . . Damage Inflicted 2556 | . 1983 571 . 2 Guns 824 | . 572 252 . . Cannons 625 | . 625 . . . Explosions 1082 | . 780 302 . . Melee . | . . . . . Ramming 25 | . 6 17 . 2 Kinetic 324 | . 324 . . . Thermal 1002 | . 750 252 . . Explosive 1082 | . 780 302 . . Electromagnetic 123 | . 123 . . . Impact . | . . . . . Slashing . | . . . . . Piercing . | . . . . . Highest Corruption . | . . . . . Average Corruption . | . . . . . Corruption Purged . | . . . . . Corruption Blocked . | . . . . . Overload Shots . | . . . . . Overflow Damage 29 | . 15 14 . . Projectiles 8 | . 8 . . . Explosions 21 | . 7 14 . . Melee . | . . . . . Knockbacks 3 | . 3 . . . Impact . | . . . . . Kinetic 2 | . 2 . . . Secondary 1 | . 1 . . . Self-Inflicted Damage 25 | . . 25 . . Shots 1 | . . 1 . . Rammed 4 | . 1 2 . 1 Targets Rammed 6 | . 3 2 . 1 Kicked 2 | . 2 . . . Crushed . | . . . . . Highest Temperature 333 | . 283 333 . . Average Temperature 98 | . 85 133 . . Received Heat Transfer 341 | . 321 . . 20 Effects 1 | . . 1 . . Energy Bleed 1 | . . 1 . . Siege Activations . | . . . . . Martial Activations . | . . . . . Shielding Activations . | . . . . . Robots Disrupted . | . . . . . Combat Hostiles . | . . . . . Robots Corrupted . | . . . . . Combat Hostiles . | . . . . . Parts Fried . | . . . . . Impact Corruptions . | . . . . . Robots Melted . | . . . . . Combat Hostiles . | . . . . . Parts Melted 1 | . 1 . . . Heat Transferred 2220 | . 1900 320 . . Parts Sabotaged . | . . . . . Parts Stolen . | . . . . . Parts Stripped . | . . . . . Power Chain Reactions . | . . . . . Alert | -11 -10 -10 -10 -9 ------- Run | Yrd Mat Min Exi Min Maximum Alert Level 1 | . . 1 . . Low Security (%) 96 | 100 100 91 . 100 Level 1 3 | . . 8 . . Level 2 . | . . . . . Level 3 . | . . . . . Level 4 . | . . . . . Level 5 . | . . . . . High Security . | . . . . . Max Security . | . . . . . Peak Influence 229 | . 170 229 . . Initial 13 | . . 13 . . Average 66 | . 46 104 . . Influence Increases 896 | . 487 409 . . Destroy 0b10 Robot/C 580 | . 280 300 . . Destroy 0b10 Robot/NC 35 | . 35 . . . Destroy Leader 116 | . 66 50 . . Successful Hack 16 | . 16 . . . Select Force Hacks 30 | . 30 . . . Disable Machine 45 | . 45 . . . Destroy Structure 44 | . 15 29 . . Lose Combat Pursuer 30 | . . 30 . . Influence Decreases 896 | . 451 338 107 . Entered New Map 130 | . . 23 107 . Time Decay 746 | . 431 315 . . Lost Part 20 | . 20 . . . Squads Dispatched 3 | . 3 . . . Investigation 2 | . 2 . . . Extermination . | . . . . . Reinforcement 1 | . 1 . . . Assault . | . . . . . Garrison . | . . . . . Intercept . | . . . . . Searches Triggered . | . . . . . Construction Impeded . | . . . . . Haulers Reinforced . | . . . . . Active Scanning Responses . | . . . . . Cargo Convoy Interrupts . | . . . . . Stealth | -11 -10 -10 -10 -9 --------- Run | Yrd Mat Min Exi Min Distress Signals 3 | . 2 . . 1 Communications Jammed . | . . . . . Distress Signals . | . . . . . Times Spotted 56 | . 23 17 . 16 Peak Tracking Total 18 | . 4 3 . 18 Tactical Retreats 1 | . . 1 . . Traps | -11 -10 -10 -10 -9 ------- Run | Yrd Mat Min Exi Min Traps Triggered 1 | . 1 . . . Indirectly . | . . . . . Trap Hack Attempts . | . . . . . Triggered . | . . . . . Disarmed . | . . . . . Reprogrammed . | . . . . . Reused . | . . . . . Traps Extracted . | . . . . . Installed . | . . . . . Triggered . | . . . . . Machines | -11 -10 -10 -10 -9 ---------- Run | Yrd Mat Min Exi Min Machines Disabled 3 | . 3 . . . Max in Single Turn 1 | . 1 . . . Machines Repaired . | . . . . . Machines Dismantled . | . . . . . Machines Sabotaged . | . . . . . Overloaded Fab Kills . | . . . . . Hacking | -11 -10 -10 -10 -9 --------- Run | Yrd Mat Min Exi Min Machines Accessed 8 | . 6 1 1 . Terminals 5 | . 5 . . . Fabricators . | . . . . . Repair Stations . | . . . . . Recycling Units 1 | . 1 . . . Scanalyzers . | . . . . . Garrison Access . | . . . . . Total Hacks 19 | . 17 1 1 . Successful 11 | . 9 1 1 . Failed 8 | . 8 . . . Catastrophic 1 | . 1 . . . Database Lockouts . | . . . . . Manual 13 | . 12 . 1 . Terminals 16 | . 16 . . . Fabricators . | . . . . . Repair Stations . | . . . . . Recycling Units 1 | . 1 . . . Scanalyzers . | . . . . . Garrison Access . | . . . . . Terminal Hacks 6 | . 4 1 1 . Robot Analysis 2 | . 2 . . . Prototype ID Bank 1 | . 1 . . . Open Door 1 | . . 1 . . Locate Traps 1 | . 1 . . . Proto ID Catalog 1 | . . . 1 . Fabricator Hacks . | . . . . . Repair Station Hacks . | . . . . . Recycling Unit Hacks . | . . . . . Scanalyzer . | . . . . . Garrison Access Hacks . | . . . . . Unauthorized Hacks 5 | . 5 . . . Terminals 4 | . 4 . . . Botnet 2 | . 2 . . . Skim 2 | . 2 . . . Fabricators . | . . . . . Repair Stations . | . . . . . Recycling Units 1 | . 1 . . . Tunnel 1 | . 1 . . . Scanalyzers . | . . . . . Garrison Access . | . . . . . Data Cores Recovered 1 | . 1 . . . Used . | . . . . . Hacking Detections 4 | . 4 . . . Full Trace Events . | . . . . . Feedback Events . | . . . . . Feedback Blocked . | . . . . . Robot Schematics Acquired . | . . . . . Robots Built . | . . . . . Authchips . | . . . . . Time . | . . . . . Total Robot Build Rating . | . . . . . Part Schematics Acquired . | . . . . . Parts Built . | . . . . . Authchips . | . . . . . Time . | . . . . . Total Part Build Rating . | . . . . . Parts Repaired . | . . . . . Time . | . . . . . Parts Recycled . | . . . . . Recycled Matter . | . . . . . Retrieved Matter . | . . . . . Retrieved Components . | . . . . . Parts Scanalyzed . | . . . . . Part Schematics Acquired . | . . . . . Parts Damaged . | . . . . . Bothacking | -11 -10 -10 -10 -9 ------------ Run | Yrd Mat Min Exi Min Used RIF Installer . | . . . . . Robots Hacked . | . . . . . Non-combat . | . . . . . Combat . | . . . . . Robot Hacks Applied . | . . . . . Relay Couplers Released . | . . . . . Fabnet Peak Effective % . | . . . . . Robots Rewired . | . . . . . Allies Hacked . | . . . . . Hacks Repelled . | . . . . . Allies | -11 -10 -10 -10 -9 -------- Run | Yrd Mat Min Exi Min Total Allies . | . . . . . Largest Group . | . . . . . Highest-Rated Group . | . . . . . Highest-Rated Ally . | . . . . . Total Orders . | . . . . . Ally Attacks . | . . . . . Total Damage . | . . . . . Kills . | . . . . . Allies Corrupted . | . . . . . Allies Melted . | . . . . . Intel | -11 -10 -10 -10 -9 ------- Run | Yrd Mat Min Exi Min Active Infowar (turns) 2172 | . 701 1024 440 7 Seismic 2172 | . 701 1024 440 7 Robot Analysis Total 2 | . 2 . . . Derelict Logs Recovered 2 | . . 2 . . Drone Launches . | . . . . . Drone Recoveries . | . . . . . Exploration | -11 -10 -10 -10 -9 ------------- Run | Yrd Mat Min Exi Min Turns Passed 3023 | 2 1403 1024 440 154 Spaces Moved 1506 | 1 604 550 273 78 Core . | . . . . . Treads 873 | . 195 327 273 78 Legs 633 | 1 409 223 . . Wheels . | . . . . . Hover . | . . . . . Flight . | . . . . . Fastest Speed 120 | 120 120 160 160 160 Average Speed 174 | 120 184 172 160 162 Slowest Speed 330 | 120 330 190 160 240 Overloaded Moves . | . . . . . Propulsion Burnouts . | . . . . . Robots Hopped . | . . . . . Potential Cave-ins . | . . . . . Cave-ins Triggered . | . . . . . Exploration Rate (%) 56 | 2 92 98 69 22 Regions Visited 4 Branch Regions 3 Pre-discovered Areas 3 | . 1 2 . . Known Exits Taken . | . . . . . Unknown Exits Taken 4 | 1 1 1 1 . Scrap Searched 1 | . . 1 . . Spaces Dug . | . . . . . Terrain Destroyed 52 | . 17 35 . . Melee . | . . . . . Projectile . | . . . . . AOE 52 | . 17 35 . . Terrain Rammed . | . . . . . Walls Destroyed . | . . . . . Machines Disabled . | . . . . . Actions | -11 -10 -10 -10 -9 --------- Run | Yrd Mat Min Exi Min Total 1731 | 1 753 594 278 105 Wait 40 | . 15 1 . 24 Move 1502 | . 603 549 272 78 Hop . | . . . . . Pick Up 26 | . 19 4 3 . Fast Attach 9 | . 8 1 . . Attach 7 | . 5 1 . 1 Detach 7 | . 7 . . . Swap 11 | 1 5 5 . . Drop 24 | . 13 7 3 1 Fire 99 | . 75 24 . . Melee . | . . . . . Ram . | . . . . . Kick 2 | . 2 . . . Crush 4 | . 1 2 . 1 Escape Stasis . | . . . . . Rewire . | . . . . . Trap . | . . . . . Miscellaneous . | . . . . . Route ------- -11/Scrapyard -10/Materials (discovered 4 exits: [*Mat x3] / *Min) -10/Mines (discovered 3 exits: [*Mat x2] / *Exi) -10/Exiles (discovered 2 exits: [*Min x2]) -9/Mines History --------- Turn | Location | Event 3 | -11/Scrapyard | Discovered new exit (range 0) 3 | -11/Scrapyard | Entered Materials 212 | -10/Materials | Discovered new exit (range 9) 308 | -10/Materials | Build established: Mutant 691 | -10/Materials | Discovered new exit (range 9) 803 | -10/Materials | Derelicts attacked the area 852 | -10/Materials | Discovered new exit (range 14) 1143 | -10/Materials | Discovered new exit (range 16) 1406 | -10/Materials | Entered Mines 1484 | -10/Mines | Met a Derelict who couldn't figure out how to use a Trap Extractor 1540 | -10/Mines | Discovered new exit (range 15) 1562 | -10/Mines | Received a Rocket Launcher from a helpful Derelict 1667 | -10/Mines | Learned location of Zion (-6) 1728 | -10/Mines | Learned 4 Materials zone layouts 1755 | -10/Mines | Core integrity fell below 50% 1911 | -10/Mines | Discovered new exit (range 6) 1930 | -10/Mines | Deemed a non-threat by the Exiles lab entrance 1930 | -10/Mines | Discovered new exit (range 5) 2430 | -10/Mines | Entered Exiles 2456 | -10/Exiles | Discovered new exit (range 15) 2471 | -10/Exiles | Met 8R-AWN 2494 | -10/Exiles | Met EX-HEX 2543 | -10/Exiles | Met EX-BIN 2563 | -10/Exiles | Aligned with FarCom system 2564 | -10/Exiles | Given EX-Vault access code 2603 | -10/Exiles | Opened EX-Vault 2620 | -10/Exiles | Found YOLO Cannon 2654 | -10/Exiles | Warned to stay clear of 0b10 Research branches 2774 | -10/Exiles | Met EX-DEC 2849 | -10/Exiles | Discovered new exit (range 15) 2870 | -10/Exiles | Left Exiles lab with YOLO Cannon 2870 | -10/Exiles | Entered Mines 2998 | -9/Mines | Assembled infested the area 3022 | -9/Mines | Core integrity fell below 20% 3024 | -9/Mines | Destroyed by as-32472 with Assembled Heavy Rifle Last Messages --------------- LOCATION=UNKNOWN GOAL=ESCAPE 02870_ Receiving FarCom transmissions... 02877_ Dropped Seismic Detector. 02899_ Slammed into K-01 Serf. 02956_ T-07 Excavator is excavating. 02998_ ALERT: Infestation in the mines, dispatching Demolisher response squad. 03012_ as-72744 sneak attacks. 03012_ U-05 Engineer destroyed. 03015_ as-72744 sneak attacks. 03015_ U-05 Engineer destroyed. 03019_ Lgt. Treads destroyed. 03021_ as-38385 destroyed. 03021_ as-00615 destroyed. 03021_ R-06 Scavenger destroyed. 03023_ as-72744 destroyed. 03023_ as-29184 destroyed. 03023_ as-89057 destroyed. 03023_ as-30624 destroyed. Map ----- +----------------------------------------------------+ | ?????????????????????????????????????????????????? | | ?????????????????????????????????????????????????? | | ??????????????????????????????????################ | | ??????????????????????????????????# # | | ??????????????????????????????????# # | | ??????????????????????????????????# """ """ # | | ??????????????????????????????????# """ """ # | | ???????????????????????????######?# """ """ # | | ???????????????????????????# #?# # | | ???????????????????????????# #?# # | | ???????????????????????????# #?#### !########## | | ???????????????????????????# #????# #????????? | | ???????????????????????????# ###### #???###??? | | ???????????????????????????# #??# ##?? | | ???????????????????s??s????# ###### #?? ##? | | ???????????????????????????######????# ### #? | | ?????????????????????????????????????# ## #? | | ?????????????????????????####????????# #?? | | ????????????????????????## ####?????# ##?? | | ?????????? ????????????## ##??###### ##??? | | ????????? *=######??#### #### #?## ##???? | | ??????????!%*a ## ## #??# ##????? | | ??????????!!|= #??# #?????? | | ????????? ||= aaa d #### #?????? | | ?????????? =#a a d% % #?????? | | ?????????????# a @ #### ### #?????? | | ?????????????## a #??# ## ##?# #?????? | | ??????????????# #??# ## ##??#l#?????? | | ??????????????### ##??# ## #???# ?????? | | ????????????????## ## ####???# ???# #?????? | | ?????????????????####?##???????# ### ???# #?????? | | ???????????????????????????????# #?? #?? #?????? | | ???????????????????????????????# #?? #?? ??????? | | ???????????????????????????????# ?? ?C ??????? | | ??????????????????????????????? ??##?? ??????? | | ??????????????????????????????? ?????? ??????? | | ??????????????????????????????? ?????? #??????? | | ??????????????????????????????? ! ?????? ???????? | | ??????????????????????????????? ! ????? ???????? | | ??????????????????????????????? ?????????????? | | ??????????????????????????????? ??????????????? | | ?????????????????????????????????????????????????? | | ?????????????????????????????????????????????????? | | ?????????????????????????????????????????????????? | | ?????????????????????????????????????????????????? | | ?????????????????????????????????????????????????? | | ?????????????????????????????????????????????????? | | ?????????????????????????????????????????????????? | | ?????????????????????????????????????????????????? | | ?????????????????????????????????????????????????? | +----------------------------------------------------+ Best States ------------- Heat Dissipation 35 Energy Generation 14 Energy Capacity 250 Matter Stores 300 Matter Capacity 300 Sight Range 16 Terrain Scan Density 10 Evasion (%) 55 Targeting Accuracy 5 Recoil Reduction 2 Item Schematics ----------------- None Robot Schematics ------------------ None Fabricated ------------ Nothing Repaired ---------- Nothing Alien Tech Used ----------------- None Achievements -------------- None Challenges ------------ None Game ------ Seed MasterIonicCapacitor Manual? 0 Play Time 00:16:52 Cumulative 413.0 hours Start 2025.08.13 @ 17:30:00 End 2025.08.13 @ 17:45:39 Sessions 1 Manual Loads 0 Difficulty Rogue Special Mode None Game No. 273 Rogue 273 Adventurer 0 Explorer 0 Win Type - Total 28 Types 22/0/4/2/0/0/0/0/0/0 Lore% 91 Gallery% 82 Achievement% 68 Wizard Run 0 Options --------- Layout 0 ASCII 1 Keyboard 1 Movement Arrows Keybinds 0 Fullscreen 2 Font 18/Terminus Map View 76x50 Zoom Use 0% Tactical HUD 1 Map Filters NONE Filters NONE Steam 1 RUN: 648b46e4-b058-4f5c-b45a-75c5e4743fc8